Workbook

Sheet FrontCover
A2: PLEASE REPLACE THIS PAGE WITH THE STANDARD MI COVER
A16: Management Information
A18: National Stop and Search
A19: Database: Quarterly Report
A22: OFFICIAL
A23: THIS DATA IS POLICE SCOTLAND MANAGEMENT INFORMATION,
A24: NOT OFFICIAL STATISTICS
A26: APRIL - JUNE 2025/26
A35: Produced by Police Scotland Analysis and Performance Unit
A36: 2025-07-02

Sheet Contents
A1: Contents
A3: The Code of Practice | B3: 2
A4: Commentary Notes | B4: 3
A5: Definition of a Stop and Search | B5: 4
A6: Stop and Searches, Legislation | B6: 5
A8: Stop and Searches
A9: Stop and Searches by Local Authority | B9: 6
A10: Stop and Searches by Legislation | B10: 7
A11: Search Outcomes | B11: 8
A12: Stop and Search Receipts | B12: 9
A14: Items Found During a Search
A15: Main Item Found Classification by Search Reason | B15: 10
A16: Drugs Found by Local Authority | B16: 11
A17: Weapons Found by Local Authority | B17: 12
A18: Other Items Found by Local Authority | B18: 13
A20: Demographic of Nominals Searched
A21: Searches by Ethnicity/National Origin | B21: 14
A22: Searches by Age and Gender | B22: 15
A24: Public Order Search Powers
A25: Use of Powers under Section 60 Criminal Justice and Public Order Act 1994 | B25: 16
F50: Produced by Police Scotland Analysis and Performance Unit
D51: 2025-07-01

Sheet The CoP
A1: The Code of Practice on the Exercise by Constables of Powers of Stop
A2: and Search of the Person in Scotland
A4: The Code came into effect on 11 May 2017. The Code governs all situations in which constables stop and search
A5: a person without first making an arrest, unless the search is expressly excluded, either under the Code, by
A6: statute, or by virtue of the search being subject to a separate statutory Code or guidance as to its exercise. The
A7: Code also sets out the requirements to be followed by the Police for recording information in relation to all stop
A8: and search activity covered by the Code.
A10: The Code requires as soon as practicable after the end of each reporting year (ending 31 March), the Chief
A11: Constable of a relevant police service must publish, information on how many times during the reporting year a
A12: stop and search was carried out in Scotland by constables of that service. In addition, so far as practicable, the
A13: information is to disclose:
A15: (a) the number of stops and searches carried out under each statutory power;
A16: (b) how many persons were searched on two or more occasions
A17: (c) the age and gender, and the ethnic and national origin, of the persons searched
A18: (d) the proportion of searches that resulted in:
A19: (i) something being recovered by a constable, including information as to the number of cases in which the item
A20: recovered was of the type suspected by the constable at the outset of the search
A21: (ii) a case being reported to the Procurator Fiscal
A22: (e) the number of authorisations issued under section 60 of the Criminal Justice and Public Order Act 1994
A23: (f) the number of complaints made to a relevant police service about the carrying out of searches
A24: (or the manner in which they were carried out) in Scotland by constables of that service.
A25: (g) the number of receipts issued
A27: The National Stop and Search Database was upgraded to coincide with the introduction of the Code.
A28: These changes included:
A29: (a) Cessation of the recording of consensual search
A30: (b) A new category to include searches of a person carried out in accordance with a search warrant issued by a court in Scotland
A31: (c) Addition of a new power under Section 66 of the Criminal Justice (Scotland) Act 2016, removal of a person
A32: (d) A new search type ‘Protection of Life’ recorded for when an officer conducts a search (in accordance with section 3.4 of
A33: the Code), under the overarching principles of Section 20 or 32 of the Police and Fire Reform (Scotland) Act 2012, as part of
A34: taking all steps necessary to protect life
A35: (e) A new search type ‘Other’ recorded for when an officer believes it is necessary to conduct a search that is not
A36: for the protection of life and where no specific statutory power exists and considers their actions to be justified,
A37: the officer should enter Police and Fire Reform (Scotland) Act as the ‘Power of Search used’
A38: (f) Officer’s estimate of the age group of the person searched (under the age of 18 or 18 years of age and over) if not provided
A40: The Code is available at police stations and on the stop and search page of the Police Scotland website (www.scotland.police.uk).
A41: The Code is available at police stations and on the stop and search page of the Police Scotland website:
A42: Police Scotland Website

Sheet Commentary page
A1: Commentary Notes on Management Information
A3: Force Level Highlights
A4: 1. All statistics are provisional and should be treated as management information. All data have been extracted
A5: from Police Scotland internal systems and are correct as of 21st July 2025.
A7: 2. This report shows the data of the enhanced database 1st April 2025 - 30th June 2025.
A9: 3. This data shows that Police Scotland is delivering the improvements set out in the Stop and Search
A10: Improvement Plan and is committed to sustaining and building on those improvements and maintaining
A11: community confidence.
A13: 4. An enhanced database was rolled out across Scotland on 1st June 2015 which included additional validations
A14: designed to improve the quality of the data by preventing inaccurate data capture through input error. Further
A15: enhancements have followed, significantly allowing more detail to be recorded since the introduction of the Code
A16: of Practice. Following the review of the data captured on the National Stop and Search Database for the period
A17: specified, it is evident that the introduction of these validation checks has made a significant impact on the level
A18: of data input errors.
A20: 5. In relation to outcomes the National Stop Search Unit (NSSU) do not validate or compare search outcomes
A21: from the National Stop Search Database with other Police systems.
A23: Ongoing Quality Assurance
A24: As part of Police Scotland's duty under data protection and our quality assurance process, records held on the
A25: database may be reviewed and may be subject to amendment. This involves liaising with the officer(s) involved
A26: to confirm any aspect of the recorded data which is unclear. Any adjustment in respect of these records will be
A27: reflected in future stop and search publications.
A30: Complaints
A31: For the period 1st April 2025 - 30th June 2025 a total of 16 complaints have been received by Police Scotland
A32: in relation to the use of stop and search.
A34: Persons Searched on Two or More Occasions
A35: Between 1st April 2025 - 30th June 2025, 1140 persons have been searched on two or more occasions.
A36: As the National Stop and Search Database is not nominal-centric this figure can be affected by a number of
A37: variables such as persons providing alias names or variations in spellings.
A39: Comparisons with Historical Data
A40: Due to changes in data recording to bring the National Stop and Search Database in line with the Code of Practice,
A41: direct comparisons with historical data would provide invalid or misleading conclusions.

Sheet Definitions
A1: Definition of a Stop and Search
A5: Stop and Search
A6: A stop and search is one conducted by a police officer in the course of their duties where a person who is not in police
A7: custody is searched using a specific statutory provision or in accordance with a search warrant issued by a court in
A8: Scotland.
A10: Positive Stop and Search
A11: A positive stop and search is when an item is recovered where possession of same implies criminality on the part
A12: of the person being searched or any other or where an item has been recovered which is potentially harmful.
A14: N.B. When a stop and search under a statutory provision has taken place and alcohol, tobacco or NPS is recovered,
A15: depending on the circumstances this should be recorded as a positive stop and search on the Stop and Search Database.
A17: Recordable Stop and Search (must be recorded on the National Stop and Search Database)
A18: A recordable stop and search is any stop and search, with the exception of condition of entry searches (Section 67 Criminal
A19: Justice (Scotland) Act 2016) or Schedule 7 of the Terrorism Act 2000 (which is governed by different Codes of Practice).

Sheet Legal Definitions
A1: Stop and Searches, Legislation
A5: The following table identifies the type of searches recorded on the National Stop and Search Database, along with the specific legislation relative to each search type:
A7: Search Type | B7: Recordable Statute
A9: Search Warrants | B9: S109(1) Copyright, Designs and Patents Act 1988 (Piracy and trademark offences etc)
A10: Search Warrants | B10: S142(1) Criminal Justice Act, 1988 (Search of premises for offensive weapons)
A11: Search Warrants | B11: S23(3) Misuse Of Drugs Act 1971
A12: Search Warrants | B12: S24(1) Forgery and Counterfeiting Act, 1981 (Search for counterfeit money)
A13: Search Warrants | B13: S27 Deer (Scotland) Act 1996
A14: Search Warrants | B14: S28B(4) Immigration Act 1971
A15: Search Warrants | B15: S292(3) Mental Health Care and Treatment Scotland Act 2003
A16: Search Warrants | B16: S42(1) Terrorism Act 2000
A17: Search Warrants | B17: S46(1) Firearms Act 1968
A18: Search Warrants | B18: Other Legislation
A19: Drugs | B19: S23(2) Misuse of Drugs Act 1971 (Controlled Drugs)
A20: Drugs | B20: S23A Misuse of Drugs Act 1971 (Temp Class Drugs)
A21: Care and Welfare | B21: S66 Criminal Justice (Scot) Act 2016
A22: NPS | B22: S36 Psychoactive Substances Act 2016 (Supply etc.)
A23: Stolen Property | B23: S60 Civic Government (Scot) Act 1982
A24: Weapons | B24: S48(1) Criminal Law (Cons) (Scot) Act 1995 (Offensive weapons)
A25: Weapons | B25: S49(B) Criminal Law (Cons) (Scot) Act 1995 (Offensive weapons in Schools)
A26: Weapons | B26: S50 Criminal Law (Cons) (Scot) Act 1995 (Bladed or Pointed Articles)
A27: Weapons | B27: S11 Offensive Weapons Act 2019 (Corrosive Substances)
A28: Firearms | B28: S47(1) Firearms Act 1968
A29: Firearms | B29: S4 Crossbows Act 1987
A30: Fireworks | B30: S11A Fireworks Act 2003
A31: Fireworks | B31: S41 Fireworks and Pyrotechnic Articles (Scotland) Act 2022
A32: Protection of Life | B32: S20/32 Police & Fire Reform (Scot) Act 2012
A33: Aviation | B33: S24B Aviation Security Act 1982 (Stolen or prohibited items in Aerodromes)
A34: Aviation | B34: Edinburgh Airport Byelaws 2015 (Search in interest of public safety)
A35: Aviation | B35: Schedule 8(2) Air Traffic Management and Unmanned Aircraft Act 2021
A36: Wildlife | B36: S19 Wildlife & Countryside Act 1981
A37: Wildlife | B37: S11 Protection of Badgers Act 1992
A38: Wildlife | B38: S101 Conservation (Natural Habitats etc.) Regulations 1994
A39: Wildlife | B39: S27 Deer (Scot) Act 1996
A40: Wildlife | B40: S4 Wild Mammals (Protection) Act 1996
A41: Wildlife | B41: S7 Wild Mammals (Scot) Act 2002
A42: Wildlife | B42: S53(1) Salmon & Freshwater Fisheries (Cons) (Scot) Act 2003
A43: Terrorism | B43: S43 Terrorism Act 2000 (Suspect terrorist)
A44: Terrorism | B44: S47A Terrorism Act 2000 (Authority of Assistant Chief Constable or above)
A45: Sporting Events | B45: S21 Criminal Law (Cons) (Scot) Act 1995 (Controlled items) - Alcohol
A46: Sporting Events | B46: S21 Criminal Law (Cons) (Scot) Act 1995 (Controlled items) - Controlled Containers
A47: Sporting Events | B47: S21 Criminal Law (Cons) (Scot) Act 1995 (Controlled items) - Controlled Article or Substance
A48: Public Order | B48: S60 Criminal Justice & Public Order Act 1994 (Authority of inspector or above)
A49: Proceeds of Crime | B49: S289 Proceeds of Crime Act 2002 (Prior approval - cash)
A50: Proceeds of Crime | B50: S303C Proceeds of Crime Act 2002 (Prior approval - listed assets)
A51: Other | B51: S20/32 Police & Fire Reform (Scot) Act 2012

Sheet Number of Searches
A1: Table 1.1
A2: Stop and Searches by Local Authority - Police Scotland
A3: =CONCATENATE("Period: ",L7) -> Period: April to June 2025
B5: Local Authority | C5: Number of Searches | D5: Positive Searches | E5: Positive Rate (%)
A7: North | L7: April to June 2025
B8: Highland | C8: 241 | D8: 128 | E8: =D8/C8*100 -> 53.1120332
B9: Orkney Islands | C9: 21 | D9: 11 | E9: =D9/C9*100 -> 52.38095238
B10: Shetland Islands | C10: 19 | D10: 3 | E10: 15.78947368
B11: Eilean Siar | C11: 15 | D11: 5 | E11: 33.33333333
B12: Aberdeen City | C12: 206 | D12: 75 | E12: 36.40776699
B13: Aberdeenshire | C13: 217 | D13: 60 | E13: 27.64976959
B14: Moray | C14: 112 | D14: 42 | E14: 37.5
B15: Perth and Kinross | C15: 92 | D15: 33 | E15: 35.86956522
B16: Dundee | C16: 210 | D16: 32 | E16: 15.23809524
B17: Angus | C17: 132 | D17: 28 | E17: 21.21212121
A19: East
B20: Fife | C20: 509 | D20: 110 | E20: 21.61100196
B21: East Lothian | C21: 50 | D21: 21 | E21: 42
B22: Edinburgh City | C22: 414 | D22: 158 | E22: 38.16425121
B23: Midlothian | C23: 12 | D23: 5 | E23: 41.66666667
B24: Scottish Borders | C24: 15 | D24: 11 | E24: 73.33333333
B25: West Lothian | C25: 35 | D25: 7 | E25: 20
B26: Clackmannanshire | C26: 86 | D26: 23 | E26: 26.74418605
B27: Falkirk | C27: 68 | D27: 22 | E27: 32.35294118
B28: Stirling | C28: 105 | D28: 32 | E28: 30.47619048
A30: West
B31: Argyll & Bute | C31: 252 | D31: 73 | E31: 28.96825397
B32: East Ayrshire | C32: 290 | D32: 74 | E32: 25.51724138
B33: East Dunbartonshire | C33: 274 | D33: 47 | E33: 17.15328467
B34: East Renfrewshire | C34: 131 | D34: 20 | E34: 15.26717557
B35: Glasgow City | C35: 3689 | D35: 825 | E35: 22.36378422
B36: Inverclyde | C36: 311 | D36: 68 | E36: 21.86495177
B37: North Ayrshire | C37: 261 | D37: 70 | E37: 26.81992337
B38: North Lanarkshire | C38: 1389 | D38: 321 | E38: 23.11015119
B39: Renfrewshire | C39: 277 | D39: 90 | E39: 32.49097473
B40: South Ayrshire | C40: 203 | D40: 52 | E40: 25.61576355
B41: South Lanarkshire | C41: 1453 | D41: 258 | E41: 17.75636614
B42: West Dunbartonshire | C42: 166 | D42: 48 | E42: 28.91566265
B43: Dumfries and Galloway | C43: 321 | D43: 111 | E43: 34.57943925
A45: Force | C45: =SUM(C7:C44) -> 11576 | D45: =SUM(D7:D44) -> 2863 | E45: 24.73220456

Sheet Search Reason
A1: Table 1.2
A2: Stop and Search by Legislation - Police Scotland
A3: ='Number of Searches'!$A$3 -> Period: April to June 2025
A5: Legislation | B5: Number of Searches | C5: Positive Searches | D5: Positive Rate (%)
A7: Drugs | B7: =SUM(B8:B9) -> 7991 | C7: =SUM(C8:C9) -> 2184 | D7: =C7/B7*100 -> 27.33074709
A8: S23(2) Misuse of Drugs Act 1971 (Controlled Drugs) | B8: 7975 | C8: 2182 | D8: =C8/B8*100 -> 27.36050157
A9: S23A Misuse of Drugs Act 1971 (Temp Class Drugs) | B9: 16 | C9: 2 | D9: =IFERROR(C9/B9*100,"-") -> 12.5
A11: NPS | B11: =B12 -> - | C11: =C12 -> - | D11: =IFERROR(C11/B11*100,"-") -> -
A12: S36 Psychoactive Substances Act 2016 (Supply etc.) | B12: - | C12: - | D12: =IFERROR(C12/B12*100,"-") -> -
A14: Weapons | B14: =SUM(B15:B18) -> 903 | C14: =SUM(C15:C18) -> 157 | D14: =C14/B14*100 -> 17.38648948
A15: S48(1) Criminal Law (Cons) (Scot) Act 1995 (Offensive weapons) | B15: 354 | C15: 64 | D15: 18.07909605
A16: S49(B) Criminal Law (Cons) (Scot) Act 1995 (Offensive weapons in Schools) | B16: 20 | C16: 7 | D16: 35
A17: S50 Criminal Law (Cons) (Scot) Act 1995 (Bladed or Pointed Articles) | B17: 528 | C17: 85 | D17: 16.09848485
A18: S11 Offensive Weapons Act 2019 (Corrosive Substances) | B18: 1 | C18: 1 | D18: =IFERROR(C18/B18*100,"-") -> 100
A19: Stolen Property | B19: =B20 -> 654 | C19: =C20 -> 283 | D19: 43.27217125
A20: S60 Civic Government (Scot) Act 1982 | B20: 654 | C20: 283 | D20: 43.27217125
A22: Sporting Events | B22: =B23 -> 5 | C22: =C23 -> 1 | D22: =IFERROR(C22/B22*100,"-") -> 20
A23: S21 Criminal Law (Cons) (Scot) Act 1995 (Controlled items) | B23: 5 | C23: 1 | D23: =IFERROR(C23/B23*100,"-") -> 20
A25: Firearms | B25: =SUM(B26:B27) -> 19 | C25: =SUM(C26:C27) -> 5 | D25: 26.31578947
A26: S47(1) Firearms Act 1968 | B26: 19 | C26: 5 | D26: 26.31578947
A27: S4 Crossbows Act 1987 | B27: - | C27: - | D27: =IFERROR(C27/B27*100,"-") -> -
A29: Fireworks | B29: =SUM(B30:B31) -> 20 | C29: =SUM(C30:C31) -> 5 | D29: =IFERROR(C29/B29*100,"-") -> 25
A30: S11A Fireworks Act 2003 | B30: 1 | C30: 0 | D30: =IFERROR(C30/B30*100,"-") -> 0
A31: S41 Fireworks and Pyrotechnic Articles (Scotland) Act 2022 | B31: 19 | C31: 5 | D31: =IFERROR(C31/B31*100,"-") -> 26.31578947
A32: Terrorism | B32: =B33 -> 1 | C32: =C33 -> - | D32: -
A33: S43 Terrorism Act 2000 | B33: 1 | C33: - | D33: -
A35: Public Order | B35: =B36 -> - | C35: =C36 -> - | D35: =IFERROR(C35/B35*100,"-") -> -
A36: S60 Criminal Justice & Public Order Act 1994 (Authority of inspector or above) | B36: - | C36: - | D36: =IFERROR(C36/B36*100,"-") -> -
D37: =IFERROR(C37/B37*100,"-") -> -
A38: Wildlife | B38: =IF(SUM(B39:B45)=0,"-",SUM(B39:B45)) -> - | C38: =IF(SUM(C39:C45)=0,"0",SUM(C39:C45)) -> 0 | D38: -
A39: S19 Wildlife & Countryside Act 1981 | B39: - | C39: - | D39: -
A40: S11 Protection of Badgers Act 1992 | B40: - | C40: - | D40: -
A41: S101 Conservation (Natural Habitats etc.) Regulations 1994 | B41: - | C41: - | D41: -
A42: S27 Deer (Scot) Act 1996 | B42: - | C42: - | D42: -
A43: S4 Wild Mammals (Protection) Act 1996 | B43: - | C43: - | D43: -
A44: S7 Wild Mammals (Scot) Act 2002 | B44: - | C44: - | D44: -
A45: S53(1) Salmon & Freshwater Fisheries (Cons) (Scot) Act 2003 | B45: - | C45: - | D45: -
D46: -
A47: Aviation | B47: =IF(SUM(B48:B50)=0,"-",SUM(B48:B50)) -> - | C47: =IF(B47="-","-",SUM(C48:C50)) -> - | D47: -
A48: S24B Aviation Security Act 1982 (Stolen or prohibited items in Aerodromes) | B48: - | C48: - | D48: -
A49: Edinburgh Airport Byelaws 2015 (Search in interest of public safety) | B49: - | C49: - | D49: -
A50: Schedule 8(2) Air Traffic Management and Unmanned Aircraft Act 2021 | B50: - | C50: - | D50: -
D51: -
A52: Search Warrants | B52: =SUM(B53:B62) -> 450 | C52: =SUM(C53:C62) -> 134 | D52: 29.77777778
A53: S109(1) Copyright, Designs and Patents Act 1988 (Piracy and trademark offences etc) | B53: - | C53: - | D53: -
A54: S142(1) Criminal Justice Act, 1988 (Search of premises for offensive weapons) | B54: - | C54: - | D54: -
A55: S23(3) Misuse Of Drugs Act 1971 | B55: 419 | C55: 127 | D55: 30.31026253
A56: S24(1) Forgery and Counterfeiting Act, 1981 (Search for counterfeit money) | B56: - | C56: - | D56: -
A57: S27 Deer (Scotland) Act 1996 | B57: - | C57: - | D57: -
A58: S28B(4) Immigration Act 1971 | B58: - | C58: - | D58: -
A59: S292(3) Mental Health Care and Treatment Scotland Act 2003 | B59: - | C59: - | D59: -
A60: S42(1) Terrorism Act 2000 | B60: - | C60: - | D60: -
A61: S46(1) Firearms Act 1968 | B61: 10 | C61: 2 | D61: 20
A62: Other Legislation | B62: 21 | C62: 5 | D62: 23.80952381
D63: -
A64: Proceeds of Crime | B64: =B65 -> 2 | C64: =C65 -> 1 | D64: 50
A65: S289 Proceeds of Crime Act 2002 (Prior approval required - cash) | B65: 2 | C65: 1 | D65: 50
A66: S303C Proceeds of Crime Act 2002 (Prior approval required - listed assets) | B66: - | C66: - | D66: -
D67: -
A68: Care and Welfare | B68: =B69 -> 1417 | C68: =C69 -> 63 | D68: 4.446012703
A69: S66 Criminal Justice (Scot) Act 2016 | B69: 1417 | C69: 63 | D69: 4.446012703
D70: -
A71: Protection of Life | B71: =B72 -> 75 | C71: =C72 -> 17 | D71: 22.66666667
A72: S20/32 Police & Fire Reform (Scot) Act 2012 | B72: 75 | C72: 17 | D72: 22.66666667
A74: Other | B74: =IF(SUM(B75)=0,"-",SUM(B75)) -> 39 | C74: =(SUM(C75)) -> 13 | D74: 33.33333333
A75: S20/32 Police & Fire Reform (Scot) Act 2012 | B75: 39 | C75: 13 | D75: 33.33333333
A77: Total Searches | B77: =SUM(B74,B71,B68,B52,B64,B47,B38,B35,B32,B29,B25,B22,B19,B14,B11,B7) -> 11576 | C77: =SUM(C74,C71,C68,C52,C64,C47,C38,C35,C32,C29,C25,C22,C19,C14,C11,C7) -> 2863 | D77: 24.73220456
A79: Public Order
A80: Searches Conducted | B80: -
A81: Positive Searches | B81: -
A82: Positive Rate (%) | B82: =IF(B81="-","-",B81/B80*100) -> -
A85: 1 - The search type ‘Other’ refers to when an officer believes it is necessary to conduct a search that is not for the
A86: protection of life and where no specific statutory power exists and considers their actions to be justified.
A87: 2 - Positive rates for searches under the Terrorism Act 2000 are not published for operational and security
A88: reasons. Statistical information about the operation of police powers under the Terrorism Act 2000 is available at
A89: Operation of Police Powers Under the Terrorism Act 2000

Sheet Overall search outcomes
A1: Table 1.3
A2: Search Outcomes - Police Scotland
A3: ='Number of Searches'!$A$3 -> Period: April to June 2025
A5: Disposal | B5: Number of Searches | C5: % Of Total Searches
A7: Fixed Penalty Notice | B7: 50 | C7: =B7/'Number of Searches'!C45*100 -> 0.4319281272
A8: SPR2 | B8: 1526 | C8: =B8/'Number of Searches'!C45*100 -> 13.18244644
A9: No Further Action | B9: 6937 | C9: =B9/'Number of Searches'!C45*100 -> 59.92570836
A10: IVPD | B10: 530 | C10: =B10/'Number of Searches'!C45*100 -> 4.578438148
A11: SID Log | B11: 2168 | C11: =B11/'Number of Searches'!C45*100 -> 18.72840359
A12: Recorded Police Warning | B12: 1407 | C12: =IF(B12="-","-",B12/'Number of Searches'!C45*100) -> 12.1544575
A15: Key: SPR2 – Standard Prosecution Reports
A16: IVPD – Interim Vulnerable Persons Database
A17: SID - Scottish Intelligence Database
A18: 3 - Any anomilies in percentage changes are due to rounding up to the nearest decimal place.
A19: 4 - Some searches are recorded with more than one disposal so totals will not equal the actual number of stop and searches.
A20: 5 - A search can have more than one disposal from the list and provides the outcome and/or further action taken by officers.
A21: 6 - The NSSU do not currently validate disposals on the National Stop and Search Database against
A22: other recording systems. This information is captured for internal management purposes only.
A23: 7 - SPR2 is a new category of disposal introduced on the 11 May 2017 to meet reporting requirements of the Code of Practice.

Sheet Receipts
A1: Table 1.4
A2: Stop and Search Receipts - Police Scotland
A3: ='Number of Searches'!$A$3 -> Period: April to June 2025
C5: Number of Searches | D5: Receipts Issued | E5: Issue Rate (%)
A8: Force | C8: 11576 | D8: 7524 | E8: =D8/C8*100 -> 64.99654457
A11: 8 - Officers may not issue a receipt if the person searched refuses to accept it or if the officer is called
A12: to an urgent incident. In all cases the record will be subject to a review to ensure compliance with the
A13: Code of Practice.

Sheet Search Different to Outcome
A1: Table 2.1
A2: Main Item Found Classification by Search Reason - Police Scotland
A3: ='Number of Searches'!A3 -> Period: April to June 2025
H5: Main Item Found Classification
A6: Reason for Search | B6: Total Positive Searches | C6: Drugs | D6: NPS | E6: Stolen Property | F6: Weapons | G6: Firearms | H6: Fireworks | I6: Controlled Container | J6: Controlled Article | K6: Alcohol | L6: Tobacco and Cigarette Papers | M6: Money | N6: Other | O6: Aviation
A8: Drugs | B8: ='Search Reason'!C7 -> 2184 | C8: 2019 | D8: 6 | E8: 10 | F8: 109 | G8: 1 | H8: 1 | I8: 3 | J8: - | K8: 61 | L8: 16 | M8: 26 | N8: 37 | O8: -
A9: New Psychoactive Substances | B9: ='Search Reason'!C11 -> - | C9: - | D9: - | E9: - | F9: - | G9: - | H9: - | I9: - | J9: - | K9: - | L9: - | M9: - | N9: - | O9: -
A10: Stolen Property | B10: ='Search Reason'!C19 -> 283 | C10: 22 | D10: - | E10: 216 | F10: 16 | G10: - | H10: - | I10: 1 | J10: - | K10: 43 | L10: 3 | M10: 1 | N10: 14 | O10: -
A11: Weapons | B11: ='Search Reason'!C14 -> 157 | C11: 20 | D11: - | E11: - | F11: 139 | G11: 1 | H11: - | I11: - | J11: - | K11: 7 | L11: - | M11: - | N11: 5 | O11: -
A12: Firearms | B12: ='Search Reason'!C25 -> 5 | C12: 3 | D12: - | E12: - | F12: 1 | G12: 2 | H12: - | I12: - | J12: - | K12: - | L12: - | M12: - | N12: - | O12: -
A13: Fireworks | B13: =IF('Search Reason'!C29=0,"-",'Search Reason'!C29) -> 5 | C13: 1 | D13: - | E13: - | F13: - | G13: - | H13: 4 | I13: - | J13: - | K13: - | L13: - | M13: - | N13: - | O13: -
A14: Aviation | B14: =IF('Search Reason'!C47=0,"-",'Search Reason'!C47) -> - | C14: - | D14: - | E14: - | F14: - | G14: - | H14: - | I14: - | J14: - | K14: - | L14: - | M14: - | N14: - | O14: -
A15: Wildlife | B15: =IF('Search Reason'!C38= "0","-",'Search Reason'!C38) -> - | C15: - | D15: - | E15: - | F15: - | G15: - | H15: - | I15: - | J15: - | K15: - | L15: - | M15: - | N15: - | O15: -
A16: Sporting Events | B16: ='Search Reason'!C22 -> 1 | C16: - | D16: - | E16: - | F16: - | G16: - | H16: 1 | I16: - | J16: - | K16: - | L16: - | M16: - | N16: - | O16: -
A17: Public Order | B17: =IF('Search Reason'!C35=0,"-",'Search Reason'!C35) -> - | C17: - | D17: - | E17: - | F17: - | G17: - | H17: - | I17: - | J17: - | K17: - | L17: - | M17: - | N17: - | O17: -
A18: Proceed of Crime | B18: =IF('Search Reason'!C64=0,"-",'Search Reason'!C64) -> 1 | C18: - | D18: - | E18: - | F18: - | G18: - | H18: - | I18: - | J18: - | K18: - | L18: - | M18: - | N18: 1 | O18: -
A19: Care & Welfare | B19: ='Search Reason'!C68 -> 63 | C19: 36 | D19: 1 | E19: - | F19: 13 | G19: - | H19: - | I19: - | J19: - | K19: 6 | L19: 3 | M19: - | N19: 7 | O19: -
A20: Warrant | B20: ='Search Reason'!C52 -> 134 | C20: 128 | D20: 1 | E20: 1 | F20: 4 | G20: 4 | H20: - | I20: - | J20: - | K20: - | L20: 1 | M20: 3 | N20: 4 | O20: -
A21: Protection of Life | B21: =IF('Search Reason'!C71=0,"-",'Search Reason'!C71) -> 17 | C21: 1 | D21: - | E21: - | F21: 10 | G21: - | H21: - | I21: - | J21: - | K21: - | L21: - | M21: - | N21: 6 | O21: -
A22: Other | B22: =IF('Search Reason'!C74=0,"-",'Search Reason'!C74) -> 13 | C22: 2 | D22: - | E22: - | F22: 1 | G22: - | H22: - | I22: - | J22: - | K22: 8 | L22: - | M22: - | N22: 3 | O22: -
A24: Force | B24: =IF(SUM(B8:B22)=0,"-",SUM(B8:B22)) -> 2863 | C24: 2232 | D24: 8 | E24: 227 | F24: 293 | G24: 8 | H24: 6 | I24: 4 | J24: - | K24: 125 | L24: 23 | M24: 30 | N24: 77 | O24: =IF(SUM(O8:O22)=0,"-",SUM(O8:O22)) -> -
A27: 9 - Items found may be higher than total positive searches as multiple items may be found in one search.

Sheet Items Found - Drugs
A1: Table 2.2
A2: Drugs found by Local Authority Area - Police Scotland
A3: ='Number of Searches'!$A$3 -> Period: April to June 2025
B5: Local Authority | C5: Class A | D5: Class B | E5: Class C | F5: NPS | G5: Total
C7: Number of searches where drugs were found
A8: North
B9: Highland | C9: 47 | D9: 76 | E9: 8 | F9: - | G9: =SUM(C9:F9) -> 131
B10: Orkney Islands | C10: 7 | D10: 3 | E10: 1 | F10: - | G10: 11
B11: Shetland Islands | C11: - | D11: 3 | E11: 1 | F11: - | G11: 4
B12: Eilean Siar | C12: 2 | D12: 2 | E12: - | F12: - | G12: =IF(SUM(C12:F12) =0,"-",SUM(C12:F12)) -> 4
B13: Aberdeen City | C13: 24 | D13: 42 | E13: 6 | F13: - | G13: 72
B14: Aberdeenshire | C14: 24 | D14: 27 | E14: 4 | F14: - | G14: 55
B15: Moray | C15: 19 | D15: 21 | E15: 2 | F15: - | G15: 42
B16: Perth & Kinross | C16: 6 | D16: 11 | E16: 3 | F16: 1 | G16: 21
B17: Dundee | C17: 9 | D17: 10 | E17: 5 | F17: - | G17: 24
B18: Angus | C18: 2 | D18: 14 | E18: 2 | F18: - | G18: =SUM(C18:F18) -> 18
A20: East
B21: Fife | C21: 31 | D21: 51 | E21: 7 | F21: 3 | G21: =SUM(C21:F21) -> 92
B22: East Lothian | C22: 5 | D22: 17 | E22: 4 | F22: - | G22: 26
B23: Edinburgh City | C23: 66 | D23: 62 | E23: 8 | F23: - | G23: 136
B24: Midlothian | C24: - | D24: 5 | E24: - | F24: - | G24: 5
B25: Scottish Borders | C25: 1 | D25: 6 | E25: - | F25: - | G25: 7
B26: West Lothian | C26: - | D26: 5 | E26: - | F26: - | G26: 5
B27: Clackmannanshire | C27: 9 | D27: 11 | E27: 4 | F27: 1 | G27: 25
B28: Falkirk | C28: 6 | D28: 11 | E28: 2 | F28: - | G28: 19
B29: Stirling | C29: 3 | D29: 21 | E29: 3 | F29: - | G29: 27
A31: West
B32: Argyll & Bute | C32: 11 | D32: 51 | E32: 7 | F32: - | G32: =SUM(C32:F32) -> 69
B33: East Ayrshire | C33: 21 | D33: 30 | E33: 3 | F33: - | G33: 54
B34: East Dunbartonshire | C34: 8 | D34: 22 | E34: 1 | F34: - | G34: 31
B35: East Renfrewshire | C35: 2 | D35: 14 | E35: 1 | F35: - | G35: 17
B36: Glasgow City | C36: 162 | D36: 462 | E36: 49 | F36: 1 | G36: 674
B37: Inverclyde | C37: 39 | D37: 30 | E37: 11 | F37: - | G37: 80
B38: North Ayrshire | C38: 26 | D38: 28 | E38: 4 | F38: - | G38: 58
B39: North Lanarkshire | C39: 79 | D39: 181 | E39: 15 | F39: - | G39: 275
B40: Renfrewshire | C40: 32 | D40: 29 | E40: 5 | F40: 1 | G40: 67
B41: South Ayrshire | C41: 12 | D41: 13 | E41: 7 | F41: - | G41: 32
B42: South Lanarkshire | C42: 60 | D42: 115 | E42: 11 | F42: 1 | G42: 187
B43: West Dunbartonshire | C43: 10 | D43: 23 | E43: 7 | F43: - | G43: 40
B44: Dumfries & Galloway | C44: 27 | D44: 62 | E44: 10 | F44: - | G44: 99
A46: Force | C46: =SUM(C9:C44) -> 750 | D46: =SUM(D9:D44) -> 1458 | E46: =SUM(E9:E44) -> 191 | F46: =SUM(F9:F44) -> 8 | G46: =SUM(G9:G44) -> 2407
A49: 10 - Due to multiple items being found in one search, the totals will not reflect the overall number of searches.

Sheet Items Found - Weapons
A1: Table 2.3
A2: Weapons found by Local Authority Area - Police Scotland
A3: ='Number of Searches'!$A$3 -> Period: April to June 2025
B5: Local Authority | C5: Bladed Instrument | D5: Blunt Instrument | E5: Pointed Article | F5: Pointed Instrument | G5: Other | H5: Total
C7: Number of searches where weapons were found
A8: North
B9: Highland | C9: 8 | D9: 8 | E9: - | F9: - | G9: 2 | H9: =SUM(C9:G9) -> 18
B10: Orkney Islands | C10: - | D10: - | E10: - | F10: - | G10: - | H10: =IF(SUM(C10:G10) =0,"-",SUM(C10:G10)) -> -
B11: Shetland Islands | C11: - | D11: - | E11: - | F11: - | G11: - | H11: =IF(SUM(C11:G11) =0,"-",SUM(C11:G11)) -> -
B12: Eilean Siar | C12: - | D12: - | E12: - | F12: - | G12: - | H12: =IF(SUM(C12:G12)=0,"-",SUM(C12:G12)) -> -
B13: Aberdeen City | C13: 1 | D13: - | E13: 1 | F13: - | G13: 4 | H13: 6
B14: Aberdeenshire | C14: 2 | D14: 3 | E14: - | F14: - | G14: - | H14: =IF(SUM(C14:G14)=0,"-",SUM(C14:G14)) -> 5
B15: Moray | C15: 2 | D15: - | E15: 1 | F15: - | G15: - | H15: =IF(SUM(C15:G15)=0,"-",SUM(C15:G15)) -> 3
B16: Perth & Kinross | C16: 1 | D16: - | E16: 2 | F16: - | G16: 1 | H16: =IF(SUM(C16:G16)=0,"-",SUM(C16:G16)) -> 4
B17: Dundee | C17: 1 | D17: - | E17: 2 | F17: - | G17: - | H17: 3
B18: Angus | C18: 1 | D18: 1 | E18: 2 | F18: - | G18: 1 | H18: 5
A20: East
B21: Fife | C21: 12 | D21: 4 | E21: 3 | F21: - | G21: 1 | H21: 20
B22: East Lothian | C22: - | D22: 1 | E22: - | F22: - | G22: - | H22: 1
B23: Edinburgh City | C23: 13 | D23: 4 | E23: 4 | F23: - | G23: - | H23: 21
B24: Midlothian | C24: - | D24: - | E24: - | F24: - | G24: - | H24: -
B25: Scottish Borders | C25: - | D25: - | E25: - | F25: - | G25: - | H25: =SUM(C25:G25) -> 0
B26: West Lothian | C26: 1 | D26: - | E26: - | F26: - | G26: - | H26: 1
B27: Clackmannanshire | C27: 1 | D27: - | E27: 1 | F27: - | G27: - | H27: =IF(SUM(C27:G27)=0,"-",SUM(C27:G27)) -> 2
B28: Falkirk | C28: 1 | D28: 1 | E28: - | F28: - | G28: - | H28: =IF(SUM(C28:G28)=0,"-",SUM(C28:G28)) -> 2
B29: Stirling | C29: 1 | D29: 1 | E29: 1 | F29: - | G29: 1 | H29: =IF(SUM(C29:G29)=0,"-",SUM(C29:G29)) -> 4
A31: West
B32: Argyll & Bute | C32: 5 | D32: - | E32: 3 | F32: - | G32: - | H32: =SUM(C32:G32) -> 8
B33: East Ayrshire | C33: 3 | D33: 2 | E33: 4 | F33: - | G33: - | H33: 9
B34: East Dunbartonshire | C34: 2 | D34: 1 | E34: - | F34: - | G34: - | H34: =IF(SUM(C34:G34)=0,"-",SUM(C34:G34)) -> 3
B35: East Renfrewshire | C35: 2 | D35: 3 | E35: 1 | F35: - | G35: 1 | H35: =IF(SUM(C35:G35)=0,"-",SUM(C35:G35)) -> 7
B36: Glasgow City | C36: 44 | D36: 17 | E36: 21 | F36: - | G36: 4 | H36: 86
B37: Inverclyde | C37: 2 | D37: 1 | E37: - | F37: - | G37: - | H37: =IF(SUM(C37:G37)=0,"-",SUM(C37:G37)) -> 3
B38: North Ayrshire | C38: 7 | D38: 3 | E38: 2 | F38: - | G38: - | H38: 12
B39: North Lanarkshire | C39: 26 | D39: 5 | E39: 5 | F39: - | G39: 3 | H39: 39
B40: Renfrewshire | C40: 9 | D40: - | E40: 6 | F40: - | G40: 2 | H40: 17
B41: South Ayrshire | C41: 3 | D41: 1 | E41: - | F41: - | G41: - | H41: 4
B42: South Lanarkshire | C42: 12 | D42: 7 | E42: 2 | F42: - | G42: 1 | H42: 22
B43: West Dunbartonshire | C43: 5 | D43: - | E43: 2 | F43: - | G43: - | H43: 7
B44: Dumfries & Galloway | C44: 4 | D44: 4 | E44: 2 | F44: - | G44: 1 | H44: 11
A46: Force | C46: =SUM(C9:C44) -> 169 | D46: =SUM(D8:D44) -> 67 | E46: =SUM(E9:E44) -> 65 | F46: =IF(SUM(F9:F44)=0,"-",SUM(F9:F44)) -> - | G46: =IF(SUM(G9:G44)=0,"-",SUM(G9:G44)) -> 22 | H46: =SUM(H8:H44) -> 323
A49: 11 - Due to multiple items being found in one search, the totals will not reflect the overall number of searches.

Sheet Items Found - Other
A1: Table 2.4
A2: Other Items found by Local Authority Area - Police Scotland
A3: ='Number of Searches'!$A$3 -> Period: April to June 2025
B5: Local Authority | C5: Firearms | D5: Fireworks | E5: Stolen Property | F5: Alcohol | G5: Other | H5: Total
C7: Number of searches where other items were found
A8: North
B9: Highland | C9: - | D9: - | E9: 6 | F9: 3 | G9: - | H9: =SUM(C9:G9) -> 9
B10: Orkney Islands | C10: - | D10: - | E10: - | F10: - | G10: - | H10: =IF(SUM(C10:G10) =0,"-",SUM(C10:G10)) -> -
B11: Shetland Islands | C11: - | D11: - | E11: - | F11: - | G11: - | H11: =IF(SUM(C11:G11)=0,"-",SUM(C11:G11)) -> -
B12: Eilean Siar | C12: - | D12: - | E12: - | F12: 1 | G12: - | H12: =IF(SUM(C12:G12)=0,"-",SUM(C12:G12)) -> 1
B13: Aberdeen City | C13: - | D13: - | E13: 4 | F13: - | G13: 2 | H13: =IF(SUM(C13:G13)=0,"-",SUM(C13:G13)) -> 6
B14: Aberdeenshire | C14: - | D14: - | E14: 2 | F14: - | G14: - | H14: =IF(SUM(C14:G14)=0,"-",SUM(C14:G14)) -> 2
B15: Moray | C15: - | D15: - | E15: - | F15: 1 | G15: 3 | H15: =IF(SUM(C15:G15)=0,"-",SUM(C15:G15)) -> 4
B16: Perth & Kinross | C16: - | D16: - | E16: 6 | F16: 2 | G16: 2 | H16: =SUM(C16:G16) -> 10
B17: Dundee | C17: - | D17: - | E17: 5 | F17: - | G17: 1 | H17: =SUM(C17:G17) -> 6
B18: Angus | C18: - | D18: - | E18: 6 | F18: - | G18: - | H18: =IF(SUM(C18:G18)=0,"-",SUM(C18:G18)) -> 6
A20: East
B21: Fife | C21: - | D21: 1 | E21: 4 | F21: 7 | G21: 3 | H21: =SUM(C21:G21) -> 15
B22: East Lothian | C22: - | D22: - | E22: - | F22: - | G22: - | H22: =SUM(C22:G22) -> 0
B23: Edinburgh City | C23: - | D23: - | E23: 21 | F23: 2 | G23: 8 | H23: =SUM(C23:G23) -> 31
B24: Midlothian | C24: - | D24: - | E24: - | F24: - | G24: - | H24: =SUM(C24:G24) -> 0
B25: Scottish Borders | C25: - | D25: - | E25: - | F25: 3 | G25: 1 | H25: =IF(SUM(C25:G25)=0,"-",SUM(C25:G25)) -> 4
B26: West Lothian | C26: - | D26: - | E26: 1 | F26: 1 | G26: - | H26: =IF(SUM(C26:G26)=0,"-",SUM(C26:G26)) -> 2
B27: Clackmannanshire | C27: - | D27: - | E27: - | F27: - | G27: - | H27: =IF(SUM(C27:G27)=0,"-",SUM(C27:G27)) -> -
B28: Falkirk | C28: - | D28: 1 | E28: - | F28: 1 | G28: - | H28: =SUM(C28:G28) -> 2
B29: Stirling | C29: - | D29: - | E29: 5 | F29: - | G29: - | H29: =SUM(C29:G29) -> 5
A31: West
B32: Argyll & Bute | C32: - | D32: - | E32: 2 | F32: 4 | G32: 1 | H32: =SUM(C32:G32) -> 7
B33: East Ayrshire | C33: 3 | D33: - | E33: 12 | F33: 2 | G33: 2 | H33: 19
B34: East Dunbartonshire | C34: - | D34: 1 | E34: 9 | F34: 10 | G34: 1 | H34: 21
B35: East Renfrewshire | C35: - | D35: - | E35: - | F35: 1 | G35: - | H35: 1
B36: Glasgow City | C36: 3 | D36: 3 | E36: 66 | F36: 28 | G36: 34 | H36: 134
B37: Inverclyde | C37: - | D37: - | E37: - | F37: 1 | G37: 4 | H37: 5
B38: North Ayrshire | C38: - | D38: - | E38: 9 | F38: 1 | G38: - | H38: 10
B39: North Lanarkshire | C39: 1 | D39: - | E39: 3 | F39: 20 | G39: 4 | H39: 28
B40: Renfrewshire | C40: - | D40: - | E40: 8 | F40: 2 | G40: 3 | H40: 13
B41: South Ayrshire | C41: - | D41: - | E41: 13 | F41: 7 | G41: - | H41: 20
B42: South Lanarkshire | C42: 1 | D42: - | E42: 30 | F42: 25 | G42: 4 | H42: 60
B43: West Dunbartonshire | C43: - | D43: - | E43: 6 | F43: 2 | G43: 2 | H43: 10
B44: Dumfries & Galloway | C44: - | D44: - | E44: 9 | F44: 1 | G44: 2 | H44: 12
A46: Force | C46: =SUM(C9:C44) -> 8 | D46: =IF(SUM(D9:D44)=0,"-",SUM(D9:D44)) -> 6 | E46: =SUM(E9:E44) -> 227 | F46: =SUM(F9:F44) -> 125 | G46: =SUM(G9:G44) -> 77 | H46: =SUM(H9:H44) -> 443
A49: 12 - Due to multiple items being found in one search, the totals will not reflect the overall number of searches.

Sheet Searches by Ethnicity
A1: Table 3.1
A2: Searches by Ethnicity/National Origin - Police Scotland
A3: ='Number of Searches'!$A$3 -> Period: April to June 2025
A5: Ethnicity/National Origin | B5: Number of Searches | C5: Positive Searches | D5: Positive Rate (%)
B7: Number
A8: White Scottish | B8: 9371 | C8: 2265 | D8: =IFERROR(C8/B8*100,"-") -> 24.17031267
A9: White British Other | B9: 558 | C9: 161 | D9: =IFERROR(C9/B9*100,"-") -> 28.85304659
A10: White Irish | B10: 30 | C10: 7 | D10: 23.33333333
A11: White Gypsy/Traveller | B11: 12 | C11: 4 | D11: 33.33333333
A12: White Polish | B12: 79 | C12: 31 | D12: 39.24050633
A13: White Other | B13: 202 | C13: 73 | D13: 36.13861386
A14: Any Mixed Ethnic Group | B14: 159 | C14: 35 | D14: 22.01257862
A15: Pakistani | B15: 186 | C15: 61 | D15: 32.79569892
A16: Indian | B16: 39 | C16: 14 | D16: 35.8974359
A17: Bangladeshi | B17: 2 | C17: 1 | D17: 50
A18: Chinese | B18: 10 | C18: 1 | D18: 10
A19: Asian Other | B19: 132 | C19: 28 | D19: 21.21212121
A20: African, African Scottish, African British | B20: 182 | C20: 45 | D20: 24.72527473
A21: African Other | B21: 99 | C21: 22 | D21: 22.22222222
A22: Caribbean, Caribbean Scottish or Caribbean British | B22: 22 | C22: 7 | D22: 31.81818182
A23: Black, Black Scottish or Black British | B23: 128 | C23: 22 | D23: 17.1875
A24: Black Other | B24: - | C24: - | D24: -
A25: Arab, Arab Scottish, Arab British | B25: 57 | C25: 6 | D25: 10.52631579
A26: Other Ethnic Group | B26: 122 | C26: 36 | D26: 29.50819672
A27: Not Provided/Unknown | B27: 186 | C27: 44 | D27: 23.65591398
B29: Percentage
A30: White Scottish | B30: =IFERROR(B8/'Number of Searches'!$C$45*100,"-") -> 80.95196959 | C30: =IFERROR(C8/'Number of Searches'!$D$45*100,"-") -> 79.11281872
A31: White British Other | B31: =IFERROR(B9/'Number of Searches'!$C$45*100,"-") -> 4.820317899 | C31: =IFERROR(C9/'Number of Searches'!$D$45*100,"-") -> 5.623471883
A32: White Irish | B32: =IFERROR(B10/'Number of Searches'!$C$45*100,"-") -> 0.2591568763 | C32: =IFERROR(C10/'Number of Searches'!$D$45*100,"-") -> 0.2444987775
A33: White Gypsy/Traveller | B33: =IFERROR(B11/'Number of Searches'!$C$45*100,"-") -> 0.1036627505 | C33: =IFERROR(C11/'Number of Searches'!$D$45*100,"-") -> 0.1397135871
A34: White Polish | B34: =IFERROR(B12/'Number of Searches'!$C$45*100,"-") -> 0.6824464409 | C34: =IFERROR(C12/'Number of Searches'!$D$45*100,"-") -> 1.0827803
A35: White Other | B35: =IFERROR(B13/'Number of Searches'!$C$45*100,"-") -> 1.744989634 | C35: =IFERROR(C13/'Number of Searches'!$D$45*100,"-") -> 2.549772965
A36: Any Mixed Ethnic Group | B36: =IFERROR(B14/'Number of Searches'!$C$45*100,"-") -> 1.373531444 | C36: =IFERROR(C14/'Number of Searches'!$D$45*100,"-") -> 1.222493888
A37: Pakistani | B37: =IFERROR(B15/'Number of Searches'!$C$45*100,"-") -> 1.606772633 | C37: =IFERROR(C15/'Number of Searches'!$D$45*100,"-") -> 2.130632204
A38: Indian | B38: =IFERROR(B16/'Number of Searches'!$C$45*100,"-") -> 0.3369039392 | C38: =IFERROR(C16/'Number of Searches'!$D$45*100,"-") -> 0.488997555
A39: Bangladeshi | B39: =IFERROR(B17/'Number of Searches'!$C$45*100,"-") -> 0.01727712509 | C39: =IFERROR(C17/'Number of Searches'!$D$45*100,"-") -> 0.03492839679
A40: Chinese | B40: =IFERROR(B18/'Number of Searches'!$C$45*100,"-") -> 0.08638562543 | C40: =IFERROR(C18/'Number of Searches'!$D$45*100,"-") -> 0.03492839679
A41: Asian Other | B41: =IFERROR(B19/'Number of Searches'!$C$45*100,"-") -> 1.140290256 | C41: =IFERROR(C19/'Number of Searches'!$D$45*100,"-") -> 0.97799511
A42: African, African Scottish, African British | B42: =IFERROR(B20/'Number of Searches'!$C$45*100,"-") -> 1.572218383 | C42: =IFERROR(C20/'Number of Searches'!$D$45*100,"-") -> 1.571777855
A43: African Other | B43: =IFERROR(B21/'Number of Searches'!$C$45*100,"-") -> 0.8552176918 | C43: =IFERROR(C21/'Number of Searches'!$D$45*100,"-") -> 0.7684247293
A44: Caribbean, Caribbean Scottish or Caribbean British | B44: =IFERROR(B22/'Number of Searches'!$C$45*100,"-") -> 0.190048376 | C44: =IFERROR(C22/'Number of Searches'!$D$45*100,"-") -> 0.2444987775
A45: Black, Black Scottish or Black British | B45: =IFERROR(B23/'Number of Searches'!$C$45*100,"-") -> 1.105736006 | C45: =IFERROR(C23/'Number of Searches'!$D$45*100,"-") -> 0.7684247293
A46: Black Other | B46: =IFERROR(B24/'Number of Searches'!$C$45*100,"-") -> - | C46: =IFERROR(C24/'Number of Searches'!$D$45*100,"-") -> -
A47: Arab, Arab Scottish, Arab British | B47: =IFERROR(B25/'Number of Searches'!$C$45*100,"-") -> 0.492398065 | C47: =IFERROR(C25/'Number of Searches'!$D$45*100,"-") -> 0.2095703807
A48: Other Ethnic Group | B48: =IFERROR(B26/'Number of Searches'!$C$45*100,"-") -> 1.05390463 | C48: =IFERROR(C26/'Number of Searches'!$D$45*100,"-") -> 1.257422284
A49: Not Provided/Unknown | B49: =IFERROR(B27/'Number of Searches'!$C$45*100,"-") -> 1.606772633 | C49: =IFERROR(C27/'Number of Searches'!$D$45*100,"-") -> 1.536849459
A52: 13 - Any anomilies in percentage changes are due to rounding up to the nearest decimal place.

Sheet Searches By Age and Gender
A1: Table 3.2
A2: Searches by Age and Gender - Police Scotland
A3: ='Number of Searches'!$A$3 -> Period: April to June 2025
A5: Demographic | B5: Number of Searches | C5: Positive Searches | D5: Positive Rate (%)
A7: Gender | B7: Number
A8: Male | B8: 9708 | C8: 2474 | D8: =IFERROR(C8/B8*100,"-") -> 25.48413679
A9: Female | B9: 1868 | C9: 389 | D9: =IFERROR(C9/B9*100,"-") -> 20.82441113
A10: Not Provided | B10: - | C10: - | D10: -
A12: Age Group
A13: 1 - 11 Years | B13: 17 | C13: - | D13: =IFERROR(C13/B13*100,"-") -> -
A14: 12 - 15 Years | B14: 902 | C14: 134 | D14: =IFERROR(C14/B14*100,"-") -> 14.85587583
A15: 16 - 17 Years | B15: 913 | C15: 211 | D15: 23.11062432
A16: 18 - 19 Years | B16: 864 | C16: 248 | D16: 28.7037037
A17: 20 - 24 Years | B17: 1545 | C17: 483 | D17: 31.26213592
A18: 25 - 29 Years | B18: 1224 | C18: 352 | D18: 28.75816993
A19: 30 - 39 Years | B19: 2615 | C19: 677 | D19: 25.88910134
A20: 40 - 49 Years | B20: 2108 | C20: 485 | D20: 23.00759013
A21: 50 - 59 Years | B21: 997 | C21: 226 | D21: 22.66800401
A22: 60 - 69 Years | B22: 240 | C22: 38 | D22: 15.83333333
A23: 70 Years and Over | B23: 46 | C23: 6 | D23: 13.04347826
A24: Age Unknown | B24: 105 | C24: 3 | D24: 2.857142857
A27: Gender | B27: Percentage
A28: Male | B28: =B8/'Number of Searches'!$C$45*100 -> 83.86316517 | C28: =IFERROR(C8/'Number of Searches'!$D$45*100,"-") -> 86.41285365
A29: Female | B29: =B9/'Number of Searches'!$C$45*100 -> 16.13683483 | C29: =IFERROR(C9/'Number of Searches'!$D$45*100,"-") -> 13.58714635
A30: Not Provided | B30: =IFERROR(B10/'Number of Searches'!$C$45*100,"-") -> - | C30: =IFERROR(C10/'Number of Searches'!$D$45*100,"-") -> -
A32: Age Group
A33: 1 - 11 Years | B33: =IFERROR(B13/'Number of Searches'!$C$45*100,"-") -> 0.1468555632 | C33: =IFERROR(C13/'Number of Searches'!$D$45*100,"-") -> -
A34: 12 - 15 Years | B34: =IFERROR(B14/'Number of Searches'!$C$45*100,"-") -> 7.791983414 | C34: =IFERROR(C14/'Number of Searches'!$D$45*100,"-") -> 4.680405169
A35: 16 - 17 Years | B35: =IFERROR(B15/'Number of Searches'!$C$45*100,"-") -> 7.887007602 | C35: =IFERROR(C15/'Number of Searches'!$D$45*100,"-") -> 7.369891722
A36: 18 - 19 Years | B36: =IFERROR(B16/'Number of Searches'!$C$45*100,"-") -> 7.463718037 | C36: =IFERROR(C16/'Number of Searches'!$D$45*100,"-") -> 8.662242403
A37: 20 - 24 Years | B37: =IFERROR(B17/'Number of Searches'!$C$45*100,"-") -> 13.34657913 | C37: =IFERROR(C17/'Number of Searches'!$D$45*100,"-") -> 16.87041565
A38: 25 - 29 Years | B38: =IFERROR(B18/'Number of Searches'!$C$45*100,"-") -> 10.57360055 | C38: =IFERROR(C18/'Number of Searches'!$D$45*100,"-") -> 12.29479567
A39: 30 - 39 Years | B39: =IFERROR(B19/'Number of Searches'!$C$45*100,"-") -> 22.58984105 | C39: =IFERROR(C19/'Number of Searches'!$D$45*100,"-") -> 23.64652462
A40: 40 - 49 Years | B40: =IFERROR(B20/'Number of Searches'!$C$45*100,"-") -> 18.21008984 | C40: =IFERROR(C20/'Number of Searches'!$D$45*100,"-") -> 16.94027244
A41: 50 - 59 Years | B41: =IFERROR(B21/'Number of Searches'!$C$45*100,"-") -> 8.612646856 | C41: =IFERROR(C21/'Number of Searches'!$D$45*100,"-") -> 7.893817674
A42: 60 - 69 Years | B42: =IFERROR(B22/'Number of Searches'!$C$45*100,"-") -> 2.07325501 | C42: =IFERROR(C22/'Number of Searches'!$D$45*100,"-") -> 1.327279078
A43: 70 Years and Over | B43: =IFERROR(B23/'Number of Searches'!$C$45*100,"-") -> 0.397373877 | C43: =IFERROR(C23/'Number of Searches'!$D$45*100,"-") -> 0.2095703807
A44: Age Unknown | B44: =IFERROR(B24/'Number of Searches'!$C$45*100,"-") -> 0.907049067 | C44: =IFERROR(C24/'Number of Searches'!$D$45*100,"-") -> 0.1047851904
A47: 14 - All 17 searches of persons in the age group ‘1-11’ have been reviewed by the NSSU and met the expected
A48: criteria.
A49: 15 - Searches recorded in the age group 'Age Unknown' refer to records where the nominal details were withheld
A50: or 'Age Unknown' boxes have been ticked. Officers are required to make an estimate whether the persons
A51: searched was under the age of 18. Of the 105 searches 81 were for persons estimated by reporting officers to be
A52: 18 years of age or over and 24 was for persons estimated to be under the age of 18.

Sheet S60 Auths
A1: Table 4.1
A2: Use of powers under Section 60 Criminal Justice and Public Order Act 1994 - Police Scotland
A3: ='Number of Searches'!$A$3 -> Period: April to June 2025
A5: A total of 0 stop searches have been carried out under Section 60 Criminal Justice and Public Order Act 1994 authorisations recorded as detailed in the table below:
A7: Authorisation Date | B7: Local Authority Area | C7: Authorising Officer Rank | D7: Authorisation Type | E7: Number of Searches
